[Event "Titled Tuesday Blitz August 17 2021"]
[White "Molina, Roberto Junio Brito"]
[Black "Patrascu, Catalin-Lucian"]
[WhiteFideId "2109450"]
[BlackFideId "1229052"]
[WhiteElo "2402"]
[BlackElo "2120"]
[Result "1-0"]
[Round "01"]
[TimeControl "180+1"]
[Date "2021.08.17"]
[WhiteClock "0:00:26"]
[BlackClock "0:00:03"]

1. d4 {[%clk 0:03:00]}  Nf6 {[%clk 0:02:59]} 2. c4 {[%clk 0:03:01]}  e6 {[%clk 0:02:59]} 3. Nf3 {[%clk 0:03:00]}  d5 {[%clk 0:02:59]} 4. Nc3 {[%clk 0:03:01]}  dxc4 {[%clk 0:02:59]} 5. e3 {[%clk 0:02:59]}  a6 {[%clk 0:02:57]} 6. a4 {[%clk 0:02:58]}  c5 {[%clk 0:02:49]} 7. Bxc4 {[%clk 0:02:58]}  Nbd7 {[%clk 0:02:48]} 8. O-O {[%clk 0:02:57]}  b6 {[%clk 0:02:47]} 9. d5 {[%clk 0:02:55]}  e5 {[%clk 0:02:45]} 10. e4 {[%clk 0:02:40]}  Bd6 {[%clk 0:02:40]} 11. Re1 {[%clk 0:02:34]}  Nf8 {[%clk 0:02:33]} 12. g3 {[%clk 0:02:33]}  Bg4 {[%clk 0:02:30]} 13. Be2 {[%clk 0:02:33]}  Ng6 {[%clk 0:02:30]} 14. Nd2 {[%clk 0:02:33]}  h5 {[%clk 0:02:22]} 15. Nc4 {[%clk 0:02:30]}  Rb8 {[%clk 0:02:15]} 16. Qd3 {[%clk 0:02:18]}  h4 {[%clk 0:02:04]} 17. Bg5 {[%clk 0:02:17]}  Qd7 {[%clk 0:02:02]} 18. Bxf6 {[%clk 0:02:07]}  Bxe2 {[%clk 0:02:00]} 19. Qxe2 {[%clk 0:02:04]}  gxf6 {[%clk 0:01:57]} 20. Nxd6+ {[%clk 0:01:51]}  Qxd6 {[%clk 0:01:56]} 21. Qxa6 {[%clk 0:01:52]}  Kf8 {[%clk 0:01:42]} 22. Qe2 {[%clk 0:01:37]}  Kg7 {[%clk 0:01:15]} 23. Nd1 {[%clk 0:01:27]}  Rbg8 {[%clk 0:01:01]} 24. Ne3 {[%clk 0:01:27]}  Ne7 {[%clk 0:00:55]} 25. Qf3 {[%clk 0:01:22]}  Qd7 {[%clk 0:00:43]} 26. Qg4+ {[%clk 0:01:18]}  Qxg4 {[%clk 0:00:42]} 27. Nxg4 {[%clk 0:01:19]}  hxg3 {[%clk 0:00:40]} 28. fxg3 {[%clk 0:01:17]}  f5 {[%clk 0:00:31]} 29. exf5 {[%clk 0:01:06]}  Nxf5 {[%clk 0:00:14]} 30. Nxe5 {[%clk 0:01:05]}  Nd4 {[%clk 0:00:14]} 31. Rf1 {[%clk 0:01:02]}  f6 {[%clk 0:00:13]} 32. Nc4 {[%clk 0:00:56]}  Rh5 {[%clk 0:00:10]} 33. Nxb6 {[%clk 0:00:51]}  Rgh8 {[%clk 0:00:09]} 34. Rf2 {[%clk 0:00:51]}  f5 {[%clk 0:00:03]} 35. a5 {[%clk 0:00:47]}  f4 {[%clk 0:00:03]} 36. gxf4 {[%clk 0:00:47]}  Kf6 {[%clk 0:00:04]} 37. a6 {[%clk 0:00:45]}  Nf3+ {[%clk 0:00:02]} 38. Rxf3 {[%clk 0:00:42]}  Rxh2 {[%clk 0:00:03]} 39. Re1 {[%clk 0:00:36]}  Rh1+ {[%clk 0:00:02]} 40. Kf2 {[%clk 0:00:36]}  R8h2+ {[%clk 0:00:03]} 41. Kg3 {[%clk 0:00:35]}  Rh3+ {[%clk 0:00:02]} 42. Kg2 {[%clk 0:00:35]}  R3h2+ {[%clk 0:00:02]} 43. Kg3 {[%clk 0:00:31]}  Rh3+ {[%clk 0:00:03]} 44. Kf2 {[%clk 0:00:27]}  Rxf3+ {[%clk 0:00:03]} 45. Kxf3 {[%clk 0:00:26]}  Rxe1 {[%clk 0:00:03]} 46. a7 {[%clk 0:00:26]} 1-0


[Site "https://www.chess.com"]

[Event "Titled Tuesday Blitz August 17 2021"]
[White "Moroni, Luca Jr"]
[Black "Perera Alfonso, Rene Humberto"]
[WhiteFideId "865834"]
[BlackFideId "3514722"]
[WhiteElo "2491"]
[BlackElo "2313"]
[Result "1-0"]
[Round "01"]
[TimeControl "180+1"]
[Date "2021.08.17"]
[WhiteClock "0:00:33"]
[BlackClock "0:01:11"]

1. d4 {[%clk 0:03:00]}  d5 {[%clk 0:02:59]} 2. c4 {[%clk 0:03:00]}  c6 {[%clk 0:02:44]} 3. Nc3 {[%clk 0:03:00]}  Nf6 {[%clk 0:02:44]} 4. Nf3 {[%clk 0:02:56]}  dxc4 {[%clk 0:02:44]} 5. a4 {[%clk 0:02:55]}  Bf5 {[%clk 0:02:37]} 6. Ne5 {[%clk 0:02:52]}  Na6 {[%clk 0:02:36]} 7. f3 {[%clk 0:02:44]}  Nd7 {[%clk 0:02:33]} 8. Nxc4 {[%clk 0:02:40]}  e5 {[%clk 0:02:31]} 9. e4 {[%clk 0:02:15]}  exd4 {[%clk 0:02:30]} 10. exf5 {[%clk 0:02:09]}  dxc3 {[%clk 0:02:31]} 11. bxc3 {[%clk 0:02:09]}  Qf6 {[%clk 0:02:18]} 12. Qd4 {[%clk 0:01:50]}  Nac5 {[%clk 0:02:12]} 13. Qxf6 {[%clk 0:01:42]}  Nxf6 {[%clk 0:02:13]} 14. Be3 {[%clk 0:01:39]}  O-O-O {[%clk 0:02:11]} 15. Kf2 {[%clk 0:01:33]}  Nd5 {[%clk 0:02:10]} 16. Bd4 {[%clk 0:01:23]}  Nb3 {[%clk 0:02:10]} 17. Rb1 {[%clk 0:01:09]}  Nxd4 {[%clk 0:02:10]} 18. cxd4 {[%clk 0:01:10]}  f6 {[%clk 0:02:03]} 19. Bd3 {[%clk 0:00:55]}  Nf4 {[%clk 0:01:58]} 20. Be4 {[%clk 0:00:55]}  Rxd4 {[%clk 0:01:57]} 21. Na5 {[%clk 0:00:53]}  Bb4 {[%clk 0:01:21]} 22. Nxc6 {[%clk 0:00:42]}  bxc6 {[%clk 0:01:18]} 23. Ke3 {[%clk 0:00:42]}  Rd2 {[%clk 0:01:11]} 24. Kxf4 {[%clk 0:00:42]}  Rxg2 {[%clk 0:01:11]} 25. Rxb4 {[%clk 0:00:33]} 1-0


[Site "https://www.chess.com"]

[Event "Titled Tuesday Blitz August 17 2021"]
[White "Murzin, Volodar"]
[Black "Rodchenkov, Sergey D."]
[WhiteFideId "44155573"]
[BlackFideId "4168712"]
[WhiteElo "2541"]
[BlackElo "2306"]
[Result "1-0"]
[Round "01"]
[TimeControl "180+1"]
[Date "2021.08.17"]
[WhiteClock "0:00:46"]
[BlackClock "0:00:12"]

1. e4 {[%clk 0:03:00]}  c5 {[%clk 0:02:59]} 2. Nf3 {[%clk 0:02:58]}  d6 {[%clk 0:02:59]} 3. Bb5+ {[%clk 0:02:58]}  Bd7 {[%clk 0:02:57]} 4. Bxd7+ {[%clk 0:02:57]}  Qxd7 {[%clk 0:02:57]} 5. O-O {[%clk 0:02:58]}  g6 {[%clk 0:02:54]} 6. c4 {[%clk 0:02:48]}  Bg7 {[%clk 0:02:53]} 7. d4 {[%clk 0:02:48]}  cxd4 {[%clk 0:02:51]} 8. Nxd4 {[%clk 0:02:49]}  Nf6 {[%clk 0:02:50]} 9. Nc3 {[%clk 0:02:49]}  O-O {[%clk 0:02:49]} 10. f3 {[%clk 0:02:48]}  Nc6 {[%clk 0:02:45]} 11. Be3 {[%clk 0:02:48]}  Rac8 {[%clk 0:02:43]} 12. b3 {[%clk 0:02:44]}  a6 {[%clk 0:02:36]} 13. Rc1 {[%clk 0:02:43]}  Nxd4 {[%clk 0:02:03]} 14. Bxd4 {[%clk 0:02:41]}  Nh5 {[%clk 0:02:00]} 15. Nd5 {[%clk 0:02:39]}  Bxd4+ {[%clk 0:01:52]} 16. Qxd4 {[%clk 0:02:38]}  Rc6 {[%clk 0:01:52]} 17. Rfd1 {[%clk 0:02:25]}  Rd8 {[%clk 0:01:43]} 18. g4 {[%clk 0:02:18]}  Ng7 {[%clk 0:01:42]} 19. h4 {[%clk 0:02:17]}  Ne6 {[%clk 0:01:42]} 20. Qe3 {[%clk 0:02:17]}  Kh8 {[%clk 0:01:33]} 21. g5 {[%clk 0:02:15]}  Ng7 {[%clk 0:01:32]} 22. Kg2 {[%clk 0:02:13]}  Nh5 {[%clk 0:01:31]} 23. Qc3+ {[%clk 0:02:08]}  Kg8 {[%clk 0:01:29]} 24. a4 {[%clk 0:02:04]}  Rc5 {[%clk 0:01:26]} 25. Qe3 {[%clk 0:02:02]}  Re8 {[%clk 0:01:15]} 26. b4 {[%clk 0:01:58]}  Rc6 {[%clk 0:01:14]} 27. a5 {[%clk 0:01:58]}  Qc8 {[%clk 0:01:11]} 28. Nb6 {[%clk 0:01:53]}  Qe6 {[%clk 0:01:10]} 29. Nd5 {[%clk 0:01:48]}  Qc8 {[%clk 0:01:07]} 30. c5 {[%clk 0:01:34]}  dxc5 {[%clk 0:01:03]} 31. bxc5 {[%clk 0:01:35]}  Qe6 {[%clk 0:01:01]} 32. Rb1 {[%clk 0:01:31]}  Qc8 {[%clk 0:00:58]} 33. Rdc1 {[%clk 0:01:28]}  e6 {[%clk 0:00:57]} 34. Nb4 {[%clk 0:01:27]}  Rc7 {[%clk 0:00:55]} 35. Nd3 {[%clk 0:01:19]}  Rd8 {[%clk 0:00:50]} 36. Ne5 {[%clk 0:01:20]}  Ng7 {[%clk 0:00:49]} 37. Rb6 {[%clk 0:01:17]}  Ne8 {[%clk 0:00:46]} 38. Ng4 {[%clk 0:01:12]}  Rcd7 {[%clk 0:00:43]} 39. Rc2 {[%clk 0:01:08]}  Rd1 {[%clk 0:00:40]} 40. Qf4 {[%clk 0:01:07]}  Qd7 {[%clk 0:00:37]} 41. Rbb2 {[%clk 0:00:58]}  Qd3 {[%clk 0:00:34]} 42. Nh6+ {[%clk 0:00:57]}  Kh8 {[%clk 0:00:32]} 43. Qxf7 {[%clk 0:00:47]}  Qf1+ {[%clk 0:00:31]} 44. Kg3 {[%clk 0:00:47]}  Qg1+ {[%clk 0:00:30]} 45. Rg2 {[%clk 0:00:47]}  Qe1+ {[%clk 0:00:30]} 46. Rbf2 {[%clk 0:00:47]}  Nc7 {[%clk 0:00:12]} 47. Qf6# {[%clk 0:00:46]} 1-0


[Site "https://www.chess.com"]

[Event "Titled Tuesday Blitz August 17 2021"]
[White "Nesterov, Arseniy"]
[Black "Ortiz Verdezoto, Anahi"]
[WhiteFideId "24198455"]
[BlackFideId "3614581"]
[WhiteElo "2477"]
[BlackElo "1755"]
[Result "1-0"]
[Round "01"]
[TimeControl "180+1"]
[Date "2021.08.17"]
[WhiteClock "0:00:38"]
[BlackClock "0:00:49"]

1. d4 {[%clk 0:03:00]}  Nf6 {[%clk 0:02:57]} 2. c4 {[%clk 0:03:00]}  e6 {[%clk 0:02:57]} 3. Nf3 {[%clk 0:03:00]}  b6 {[%clk 0:02:57]} 4. g3 {[%clk 0:02:59]}  Ba6 {[%clk 0:02:57]} 5. Qc2 {[%clk 0:02:59]}  Bb7 {[%clk 0:02:57]} 6. Bg2 {[%clk 0:02:58]}  Bb4+ {[%clk 0:02:57]} 7. Bd2 {[%clk 0:02:57]}  a5 {[%clk 0:02:57]} 8. O-O {[%clk 0:02:54]}  O-O {[%clk 0:02:57]} 9. Bg5 {[%clk 0:02:50]}  d5 {[%clk 0:02:44]} 10. cxd5 {[%clk 0:02:46]}  exd5 {[%clk 0:02:42]} 11. Nc3 {[%clk 0:02:39]}  c6 {[%clk 0:02:38]} 12. a3 {[%clk 0:02:34]}  Be7 {[%clk 0:02:38]} 13. Bxf6 {[%clk 0:02:17]}  Bxf6 {[%clk 0:02:37]} 14. e4 {[%clk 0:02:16]}  dxe4 {[%clk 0:02:30]} 15. Nxe4 {[%clk 0:02:16]}  Be7 {[%clk 0:02:30]} 16. Rad1 {[%clk 0:02:12]}  Nd7 {[%clk 0:02:28]} 17. Ne5 {[%clk 0:02:01]}  Rc8 {[%clk 0:02:25]} 18. Bh3 {[%clk 0:01:53]}  Rc7 {[%clk 0:02:17]} 19. Nxd7 {[%clk 0:01:48]}  Rxd7 {[%clk 0:02:16]} 20. Bxd7 {[%clk 0:01:48]}  Qxd7 {[%clk 0:02:16]} 21. Rfe1 {[%clk 0:01:47]}  f5 {[%clk 0:02:11]} 22. Nc3 {[%clk 0:01:45]}  f4 {[%clk 0:02:01]} 23. Qb3+ {[%clk 0:01:38]}  Rf7 {[%clk 0:02:00]} 24. Qe6 {[%clk 0:01:12]}  Bc8 {[%clk 0:01:42]} 25. Qxd7 {[%clk 0:01:09]}  Bxd7 {[%clk 0:01:42]} 26. d5 {[%clk 0:01:01]}  fxg3 {[%clk 0:01:37]} 27. hxg3 {[%clk 0:01:02]}  cxd5 {[%clk 0:01:19]} 28. Nxd5 {[%clk 0:00:53]}  Bc5 {[%clk 0:01:03]} 29. Rd2 {[%clk 0:00:51]}  Bc6 {[%clk 0:00:57]} 30. b4 {[%clk 0:00:39]}  axb4 {[%clk 0:00:54]} 31. axb4 {[%clk 0:00:40]}  Bxf2+ {[%clk 0:00:49]} 32. Rxf2 {[%clk 0:00:39]}  Rxf2 {[%clk 0:00:49]} 33. Ne7+ {[%clk 0:00:38]} 1-0


[Site "https://www.chess.com"]

[Event "Titled Tuesday Blitz August 17 2021"]
[White "Nogerbek, Kazybek"]
[Black "Yi, Richard"]
[WhiteFideId "13710427"]
[BlackFideId "2079518"]
[WhiteElo "2436"]
[BlackElo "2425"]
[Result "1-0"]
[Round "01"]
[TimeControl "180+1"]
[Date "2021.08.17"]
[WhiteClock "0:00:07"]
[BlackClock "0:00:02"]

1. d4 {[%clk 0:02:54]}  Nf6 {[%clk 0:02:59]} 2. c4 {[%clk 0:02:54]}  g6 {[%clk 0:02:59]} 3. Nc3 {[%clk 0:02:54]}  d5 {[%clk 0:02:59]} 4. cxd5 {[%clk 0:02:54]}  Nxd5 {[%clk 0:03:00]} 5. e4 {[%clk 0:02:55]}  Nxc3 {[%clk 0:03:01]} 6. bxc3 {[%clk 0:02:55]}  Bg7 {[%clk 0:03:01]} 7. Bc4 {[%clk 0:02:56]}  c5 {[%clk 0:03:02]} 8. Ne2 {[%clk 0:02:56]}  O-O {[%clk 0:03:01]} 9. Be3 {[%clk 0:02:57]}  Nc6 {[%clk 0:03:01]} 10. O-O {[%clk 0:02:56]}  b6 {[%clk 0:03:02]} 11. Qd2 {[%clk 0:02:55]}  Bb7 {[%clk 0:02:59]} 12. Rad1 {[%clk 0:02:55]}  Qc7 {[%clk 0:02:59]} 13. Bd3 {[%clk 0:02:49]}  Rfd8 {[%clk 0:02:44]} 14. d5 {[%clk 0:02:49]}  Ne5 {[%clk 0:02:44]} 15. c4 {[%clk 0:02:49]}  e6 {[%clk 0:02:31]} 16. f4 {[%clk 0:02:23]}  Ng4 {[%clk 0:02:29]} 17. Kh1 {[%clk 0:02:20]}  Nxe3 {[%clk 0:01:37]} 18. Qxe3 {[%clk 0:02:20]}  f5 {[%clk 0:01:38]} 19. dxe6 {[%clk 0:02:15]}  Rxd3 {[%clk 0:01:10]} 20. Qxd3 {[%clk 0:02:08]}  Bxe4 {[%clk 0:01:10]} 21. Qd7 {[%clk 0:02:08]}  Qxd7 {[%clk 0:00:53]} 22. Rxd7 {[%clk 0:01:54]}  Re8 {[%clk 0:00:53]} 23. e7 {[%clk 0:01:45]}  a6 {[%clk 0:00:50]} 24. Ng3 {[%clk 0:01:41]}  Bc6 {[%clk 0:00:43]} 25. Rd6 {[%clk 0:01:33]}  Ba4 {[%clk 0:00:39]} 26. Rxb6 {[%clk 0:01:27]}  Rxe7 {[%clk 0:00:39]} 27. Rxa6 {[%clk 0:01:27]}  Be8 {[%clk 0:00:35]} 28. h3 {[%clk 0:01:23]}  h5 {[%clk 0:00:35]} 29. Rf2 {[%clk 0:01:14]}  Kh7 {[%clk 0:00:32]} 30. Re2 {[%clk 0:01:14]}  Rxe2 {[%clk 0:00:26]} 31. Nxe2 {[%clk 0:01:14]}  Bf7 {[%clk 0:00:26]} 32. Ra4 {[%clk 0:01:09]}  Bb2 {[%clk 0:00:19]} 33. Ng1 {[%clk 0:01:07]}  Bc1 {[%clk 0:00:15]} 34. Ra7 {[%clk 0:00:59]}  Kg8 {[%clk 0:00:14]} 35. Ne2 {[%clk 0:00:56]}  Be3 {[%clk 0:00:13]} 36. Re7 {[%clk 0:00:55]}  Bd2 {[%clk 0:00:12]} 37. Rd7 {[%clk 0:00:52]}  Bb4 {[%clk 0:00:11]} 38. Rxf7 {[%clk 0:00:40]}  Kxf7 {[%clk 0:00:11]} 39. Kg1 {[%clk 0:00:41]}  Kf6 {[%clk 0:00:10]} 40. Kf2 {[%clk 0:00:41]}  Ke6 {[%clk 0:00:06]} 41. Ke3 {[%clk 0:00:41]}  Kd6 {[%clk 0:00:06]} 42. Kd3 {[%clk 0:00:38]}  Kc6 {[%clk 0:00:07]} 43. Kc2 {[%clk 0:00:39]}  Kb6 {[%clk 0:00:07]} 44. Kb3 {[%clk 0:00:40]}  Ka5 {[%clk 0:00:08]} 45. Nc1 {[%clk 0:00:40]}  Bd2 {[%clk 0:00:07]} 46. Nd3 {[%clk 0:00:41]}  Be3 {[%clk 0:00:07]} 47. Ne5 {[%clk 0:00:35]}  g5 {[%clk 0:00:03]} 48. fxg5 {[%clk 0:00:31]}  Bxg5 {[%clk 0:00:04]} 49. Nd7 {[%clk 0:00:18]}  Be3 {[%clk 0:00:04]} 50. Nf8 {[%clk 0:00:18]}  h4 {[%clk 0:00:01]} 51. Ne6 {[%clk 0:00:18]}  f4 {[%clk 0:00:01]} 52. Ng5 {[%clk 0:00:18]}  Bf2 {[%clk 0:00:01]} 53. Nf3 {[%clk 0:00:18]}  Bg3 {[%clk 0:00:01]} 54. Nd2 {[%clk 0:00:15]}  Bf2 {[%clk 0:00:02]} 55. Kc2 {[%clk 0:00:12]}  Be3 {[%clk 0:00:02]} 56. Nf3 {[%clk 0:00:13]}  Kb4 {[%clk 0:00:03]} 57. Kd3 {[%clk 0:00:11]}  Ka3 {[%clk 0:00:03]} 58. Nxh4 {[%clk 0:00:11]}  Kxa2 {[%clk 0:00:03]} 59. Nf5 {[%clk 0:00:11]}  Bf2 {[%clk 0:00:02]} 60. h4 {[%clk 0:00:12]}  Kb3 {[%clk 0:00:01]} 61. h5 {[%clk 0:00:12]}  Be1 {[%clk 0:00:01]} 62. h6 {[%clk 0:00:06]}  Bc3 {[%clk 0:00:02]} 63. h7 {[%clk 0:00:06]}  Bh8 {[%clk 0:00:02]} 64. Nh6 {[%clk 0:00:06]}  Bg7 {[%clk 0:00:02]} 65. Nf7 {[%clk 0:00:06]}  f3 {[%clk 0:00:02]} 66. gxf3 {[%clk 0:00:07]}  Bh8 {[%clk 0:00:02]} 67. Nxh8 {[%clk 0:00:07]} 1-0


[Site "https://www.chess.com"]

[Event "Titled Tuesday Blitz August 17 2021"]
[White "Ozen, Bahadir"]
[Black "Hoffmann, Asa"]
[WhiteFideId "6337058"]
[BlackFideId "2001470"]
[WhiteElo "2503"]
[BlackElo "2117"]
[Result "1-0"]
[Round "01"]
[TimeControl "180+1"]
[Date "2021.08.17"]
[WhiteClock "0:00:40"]
[BlackClock "0:00:10"]

1. g3 {[%clk 0:02:58]}  d6 {[%clk 0:02:53]} 2. Bg2 {[%clk 0:02:55]}  e5 {[%clk 0:02:52]} 3. c4 {[%clk 0:02:54]}  c6 {[%clk 0:02:50]} 4. Nc3 {[%clk 0:02:53]}  Nf6 {[%clk 0:02:49]} 5. e4 {[%clk 0:02:51]}  Be6 {[%clk 0:02:47]} 6. d3 {[%clk 0:02:44]}  d5 {[%clk 0:02:46]} 7. exd5 {[%clk 0:02:42]}  cxd5 {[%clk 0:02:45]} 8. Bg5 {[%clk 0:02:41]}  Bb4 {[%clk 0:02:39]} 9. Bxf6 {[%clk 0:02:35]}  gxf6 {[%clk 0:02:37]} 10. cxd5 {[%clk 0:02:18]}  Bxd5 {[%clk 0:02:36]} 11. Nf3 {[%clk 0:02:18]}  Nc6 {[%clk 0:02:28]} 12. O-O {[%clk 0:02:17]}  Be6 {[%clk 0:02:26]} 13. Nh4 {[%clk 0:01:56]}  Qd7 {[%clk 0:02:17]} 14. Ne4 {[%clk 0:01:51]}  Be7 {[%clk 0:02:15]} 15. Rc1 {[%clk 0:01:47]}  O-O {[%clk 0:01:57]} 16. Qh5 {[%clk 0:01:43]}  Rac8 {[%clk 0:01:42]} 17. Qh6 {[%clk 0:01:36]}  Qd8 {[%clk 0:01:17]} 18. Nxf6+ {[%clk 0:01:23]}  Bxf6 {[%clk 0:01:12]} 19. Be4 {[%clk 0:01:24]}  Re8 {[%clk 0:00:53]} 20. Bxh7+ {[%clk 0:01:23]}  Kh8 {[%clk 0:00:52]} 21. Bg6+ {[%clk 0:01:07]}  Kg8 {[%clk 0:00:51]} 22. Bh7+ {[%clk 0:01:08]}  Kh8 {[%clk 0:00:50]} 23. Be4+ {[%clk 0:01:00]}  Kg8 {[%clk 0:00:49]} 24. f4 {[%clk 0:01:00]}  Bg7 {[%clk 0:00:42]} 25. Qh7+ {[%clk 0:00:59]}  Kf8 {[%clk 0:00:41]} 26. f5 {[%clk 0:00:50]}  Qg5 {[%clk 0:00:18]} 27. fxe6 {[%clk 0:00:48]}  Rxe6 {[%clk 0:00:17]} 28. Ng6+ {[%clk 0:00:43]}  Ke8 {[%clk 0:00:15]} 29. Qg8+ {[%clk 0:00:42]}  Kd7 {[%clk 0:00:14]} 30. Qxf7+ {[%clk 0:00:41]}  Ne7 {[%clk 0:00:11]} 31. Rxc8 {[%clk 0:00:41]}  Kxc8 {[%clk 0:00:10]} 32. Qxe6+ {[%clk 0:00:40]} 1-0


[Site "https://www.chess.com"]

[Event "Titled Tuesday Blitz August 17 2021"]
[White "Pajeken, Jakob Leon"]
[Black "Moskalenko, Alexander"]
[WhiteFideId "12942839"]
[BlackFideId "4155351"]
[WhiteElo "2231"]
[BlackElo "2495"]
[Result "0-1"]
[Round "01"]
[TimeControl "180+1"]
[Date "2021.08.17"]
[WhiteClock "0:00:36"]
[BlackClock "0:01:32"]

1. d4 {[%clk 0:02:18]}  g6 {[%clk 0:03:00]} 2. e4 {[%clk 0:02:17]}  Bg7 {[%clk 0:03:01]} 3. Nc3 {[%clk 0:02:17]}  d6 {[%clk 0:02:58]} 4. Be3 {[%clk 0:02:16]}  a6 {[%clk 0:02:59]} 5. h4 {[%clk 0:02:15]}  h5 {[%clk 0:02:57]} 6. f3 {[%clk 0:02:15]}  b5 {[%clk 0:02:57]} 7. a4 {[%clk 0:02:13]}  b4 {[%clk 0:02:54]} 8. Nd5 {[%clk 0:02:11]}  a5 {[%clk 0:02:48]} 9. Nh3 {[%clk 0:02:11]}  c6 {[%clk 0:02:46]} 10. Ndf4 {[%clk 0:02:11]}  Bxh3 {[%clk 0:02:36]} 11. Nxh3 {[%clk 0:02:09]}  Nd7 {[%clk 0:02:36]} 12. Ng5 {[%clk 0:02:09]}  Ngf6 {[%clk 0:02:31]} 13. Bc4 {[%clk 0:02:08]}  d5 {[%clk 0:02:31]} 14. Bb3 {[%clk 0:01:55]}  e6 {[%clk 0:02:32]} 15. O-O {[%clk 0:01:51]}  Nh7 {[%clk 0:02:31]} 16. Qd3 {[%clk 0:01:47]}  Nxg5 {[%clk 0:02:30]} 17. Bxg5 {[%clk 0:01:48]}  Bf6 {[%clk 0:02:30]} 18. f4 {[%clk 0:01:45]}  Qb6 {[%clk 0:02:29]} 19. Rad1 {[%clk 0:01:42]}  dxe4 {[%clk 0:02:14]} 20. Qxe4 {[%clk 0:01:39]}  O-O {[%clk 0:02:14]} 21. Bh6 {[%clk 0:01:13]}  Bg7 {[%clk 0:02:10]} 22. Bxg7 {[%clk 0:01:08]}  Kxg7 {[%clk 0:02:11]} 23. g4 {[%clk 0:01:07]}  hxg4 {[%clk 0:01:57]} 24. h5 {[%clk 0:01:07]}  Rae8 {[%clk 0:01:57]} 25. hxg6 {[%clk 0:01:02]}  f5 {[%clk 0:01:57]} 26. Qe3 {[%clk 0:00:59]}  Kxg6 {[%clk 0:01:56]} 27. Bxe6 {[%clk 0:00:57]}  Qc7 {[%clk 0:01:39]} 28. Rde1 {[%clk 0:00:54]}  Nf6 {[%clk 0:01:38]} 29. Qb3 {[%clk 0:00:50]}  Qd6 {[%clk 0:01:34]} 30. c3 {[%clk 0:00:48]}  Ne4 {[%clk 0:01:31]} 31. Rxe4 {[%clk 0:00:46]}  fxe4 {[%clk 0:01:31]} 32. f5+ {[%clk 0:00:47]}  Kf6 {[%clk 0:01:31]} 33. Kg2 {[%clk 0:00:42]}  Rh8 {[%clk 0:01:30]} 34. Rh1 {[%clk 0:00:41]}  Qf4 {[%clk 0:01:30]} 35. Rxh8 {[%clk 0:00:36]}  Qf3+ {[%clk 0:01:31]} 36. Kg1 {[%clk 0:00:36]}  Rxh8 {[%clk 0:01:32]} 0-1


[Site "https://www.chess.com"]

[Event "Titled Tuesday Blitz August 17 2021"]
[White "Pultinevicius, Paulius"]
[Black "Plotnikov, Pavel"]
[WhiteFideId "12809390"]
[BlackFideId "4170342"]
[WhiteElo "2479"]
[BlackElo "2298"]
[Result "1-0"]
[Round "01"]
[TimeControl "180+1"]
[Date "2021.08.17"]
[WhiteClock "0:00:32"]
[BlackClock "0:00:03"]

1. d4 {[%clk 0:03:00]}  d5 {[%clk 0:02:58]} 2. c4 {[%clk 0:03:01]}  e6 {[%clk 0:02:56]} 3. Nc3 {[%clk 0:03:01]}  Be7 {[%clk 0:02:54]} 4. Nf3 {[%clk 0:02:57]}  Nf6 {[%clk 0:02:53]} 5. Bg5 {[%clk 0:02:57]}  O-O {[%clk 0:02:51]} 6. e3 {[%clk 0:02:57]}  b6 {[%clk 0:02:48]} 7. Be2 {[%clk 0:02:52]}  dxc4 {[%clk 0:02:44]} 8. Bxc4 {[%clk 0:02:52]}  Bb7 {[%clk 0:02:39]} 9. O-O {[%clk 0:02:51]}  Nbd7 {[%clk 0:02:37]} 10. Qe2 {[%clk 0:02:46]}  a6 {[%clk 0:02:34]} 11. a4 {[%clk 0:02:38]}  c5 {[%clk 0:02:28]} 12. Rfd1 {[%clk 0:02:38]}  Qc7 {[%clk 0:02:24]} 13. Rac1 {[%clk 0:02:15]}  Rac8 {[%clk 0:02:13]} 14. d5 {[%clk 0:02:14]}  exd5 {[%clk 0:02:06]} 15. Nxd5 {[%clk 0:01:57]}  Bxd5 {[%clk 0:02:01]} 16. Bxd5 {[%clk 0:01:56]}  Nxd5 {[%clk 0:01:44]} 17. Rxd5 {[%clk 0:01:56]}  Bxg5 {[%clk 0:01:44]} 18. Nxg5 {[%clk 0:01:53]}  Nf6 {[%clk 0:01:40]} 19. Rdd1 {[%clk 0:01:47]}  h6 {[%clk 0:01:34]} 20. Nf3 {[%clk 0:01:46]}  Qb7 {[%clk 0:01:30]} 21. Ne5 {[%clk 0:01:38]}  Rfd8 {[%clk 0:01:28]} 22. f3 {[%clk 0:01:32]}  Rd5 {[%clk 0:01:09]} 23. Rxd5 {[%clk 0:01:28]}  Qxd5 {[%clk 0:01:01]} 24. Nc4 {[%clk 0:01:14]}  Qc6 {[%clk 0:00:46]} 25. Rd1 {[%clk 0:01:10]}  Rb8 {[%clk 0:00:36]} 26. b3 {[%clk 0:01:01]}  b5 {[%clk 0:00:31]} 27. axb5 {[%clk 0:00:59]}  axb5 {[%clk 0:00:31]} 28. Na3 {[%clk 0:00:49]}  Qe6 {[%clk 0:00:23]} 29. Qd3 {[%clk 0:00:45]}  Qc6 {[%clk 0:00:18]} 30. e4 {[%clk 0:00:44]}  Qb6 {[%clk 0:00:17]} 31. Qe3 {[%clk 0:00:44]}  Ra8 {[%clk 0:00:13]} 32. Nb1 {[%clk 0:00:42]}  Ra1 {[%clk 0:00:11]} 33. h3 {[%clk 0:00:39]}  Qc6 {[%clk 0:00:09]} 34. Qc3 {[%clk 0:00:39]}  Ra2 {[%clk 0:00:07]} 35. Qd3 {[%clk 0:00:39]}  Qe6 {[%clk 0:00:06]} 36. Nc3 {[%clk 0:00:39]}  Rb2 {[%clk 0:00:03]} 37. Qxb5 {[%clk 0:00:32]} 1-0


[Site "https://www.chess.com"]